[Event "DVM U20 2019"]
[Site "Braunschweig"]
[Date "2019.12.28"]
[Round "3"]
[White "Foo, Tzun Hong"]
[Black "Seref, Erdogan"]
[Result "0-1"]
[ECO "C92"]
[WhiteElo "1829"]
[BlackElo "2003"]
[Annotator "NA"]
[PlyCount "90"]
[EventDate "2019.12.27"]
[EventType "team-tourn"]
[EventRounds "7"]
[EventCountry "GER"]
[SourceTitle "playchess.com"]
[Source "ChessBase"]
[SourceQuality "1"]
[WhiteTeam "Hamburger SK"]
[BlackTeam "SF Brackel"]
[TimeControl "40/5400+30:1800+30"]

1. e4 {[%emt 0:00:00]} e5 {[%emt 0:00:00]} 2. Nf3 {[%emt 0:00:00]} Nc6 {[%emt 0:00:00]} 3. Bb5 {[%emt 0:00:00]} a6 {[%emt 0:00:00]} 4. Ba4 {[%emt 0:00:00]} Nf6 {[%emt 0:00:01]} 5. O-O {[%emt 0:00:32]} Be7 {[%emt 0:00:06]} 6. Re1 {[%emt 0:01:01]} b5 {[%emt 0:00:18]} 7. Bb3 {[%emt 0:00:07]} O-O {[%emt 0:00:08]} 8. c3 {[%emt 0:03:07]} d6 {[%emt 0:00:07]} 9. h3 {[%emt 0:00:29]} Re8 {[%emt 0:00:08] unterminated} 10. d4 {[%emt 0:08:10]} Bb7 {[%emt 0:00:09] unterminated} 11. Nbd2 {[%emt 0:02:15] unterminated} h6 {[%emt 0:02:10] unterminated} 12. Nf1 {[%emt 0:02:21] unterminated} Bf8 {[%emt 0:02:43]} 13. Ng3 {[%emt 0:00:44] unterminated} Qd7 {[%emt 0:09:50] unterminated unterminated. C93: Closed Ruy Lopez: Smyslov Variation} 14. Bc2 {[%emt 0:05:50] unterminated} Rad8 {[%emt 0:05:37] unterminated} 15. a3 {[%emt 0:16:49] unterminated} Qc8 {[%emt 0:01:59] [#] unterminated} 16. Be3 $146 {[%emt 0:21:38] unterminated} ({Predecessor:} 16. d5 Ne7 17. b3 c6 18. c4 Qc7 19. Be3 Bc8 20. Nh2 bxc4 21. bxc4 Bd7 22. Bd3 c5 {1-0 (75) Palac,M (2535)-Vukelic,T (2226) Mali Losinj 2017}) 16... Qa8 {[%emt 0:02:20] unterminated} 17. d5 {[%emt 0:08:11]} Nb8 {[%emt 0:00:11] unterminated} 18. b3 {[%emt 0:03:21]} Nbd7 {[%emt 0:01:38] unterminated} 19. Nh2 {[%emt 0:04:11] unterminated} c6 {[%emt 0:03:08] unterminated} 20. c4 {[%emt 0:01:32] unterminated} Rc8 {[%emt 0:07:12] unterminated} 21. Ng4 {[%emt 0:04:11] unterminated} a5 {[%emt 0:04:20]} 22. a4 {[%emt 0:00:34] unterminated} cxd5 {[%emt 0:03:21] unterminated} 23. cxd5 {[%emt 0:00:35]} b4 {[%emt 0:00:54] unterminated} 24. Nf5 {[%emt 0:06:03] unterminated} Rc7 {[%emt 0:04:05] unterminated} 25. Ra2 {[%emt 0:03:46] unterminated} (25. Bxh6 $16 gxh6 26. Ngxh6+ Bxh6 27. Nxh6+ Kh7 28. Nxf7) 25... Rec8 {[%emt 0:03:02] unterminated} 26. Bb1 {[%emt 0:01:41] unterminated} Kh8 {[%emt 0:08:46]} 27. Qf3 {[%emt 0:02:00] unterminated} Nxg4 {[%emt 0:06:04]} 28. hxg4 {[%emt 0:00:20] unterminated} Rc3 {[%emt 0:02:18] unterminated} 29. g5 {[%emt 0:01:41] unterminated} hxg5 {[%emt 0:01:19] unterminated} 30. Qh5+ {[%emt 0:01:09]} Kg8 {[%emt 0:00:08]} 31. Qxg5 {[%emt 0:00:26] unterminated} R8c7 {[%emt 0:07:15] unterminated} 32. Nh6+ $1 {[%emt 0:01:34]} Kh7 {[%emt 0:00:13] unterminated} 33. Nxf7 {[%emt 0:00:33] unterminated} Nf6 {[%emt 0:06:59]} 34. Qh4+ {[%emt 0:00:21] unterminated} Kg8 {[%emt 0:01:08]} 35. Ng5 {[%emt 0:00:40] unterminated} Rxb3 {[%emt 0:04:05]} 36. Kh2 {[%emt 0:01:06] unterminated} Qe8 {[%emt 0:01:41] unterminated} 37. g4 {[%emt 0:00:55]} Bc8 {[%emt 0:00:52]} 38. f3 {[%emt 0:00:26] unterminated} Qg6 {[%emt 0:03:57]} 39. Kg2 {[%emt 0:00:15] unterminated} Nh7 {[%emt 0:01:34]} (39... Qh6 $17 40. Qxh6 gxh6) 40. Rh1 $2 {[%emt 0:00:53] unterminated} (40. Nxh7 $11 {and White is okay.} Qxh7 41. Qxh7+ Kxh7 42. Bb6) 40... Nxg5 $2 {[%emt 0:01:20]} (40... Be7 $19 41. Qxh7+ Qxh7 42. Rxh7 Bxg5 43. Bxg5 Kxh7) 41. Bxg5 {[%emt 0:30:21] unterminated} Ba6 {[%emt 0:36:57] unterminated} 42. f4 {[%emt 0:00:00] [#] unterminated} Rxb1 $1 {[%emt 0:00:00] unterminated} 43. Qh8+ $19 {[%emt 0:00:00]} Kf7 {[%emt 0:00:00]} 44. f5 {[%emt 0:00:00]} Qxg5 {[%emt 0:00:00]} 45. Rxb1 {[%emt 0:00:00]} Qxg4+ {[%emt 0:00:00] normal} 0-1

[Event "DVM U20 2019"]
[Site "Braunschweig"]
[Date "2019.12.28"]
[Round "3"]
[White "Hamkar, Mehran"]
[Black "Kroschel, Anton"]
[Result "1/2-1/2"]
[ECO "B24"]
[WhiteElo "1814"]
[BlackElo "1756"]
[Annotator "NA RC"]
[PlyCount "78"]
[EventDate "2019.12.27"]
[EventType "team-tourn"]
[EventRounds "7"]
[EventCountry "GER"]
[SourceTitle "playchess.com"]
[Source "ChessBase"]
[SourceQuality "1"]
[WhiteTeam "SF Augsburg"]
[BlackTeam "Lübecker SV"]
[TimeControl "40/5400+30:1800+30"]

1. e4 {[%emt 0:00:00]} c5 {[%emt 0:00:00]} 2. Nc3 {[%emt 0:00:00]} Nc6 {[%emt 0:00:24]} 3. g3 {[%emt 0:00:00]} g6 {[%emt 0:00:57]} 4. d3 {[%emt 0:00:06]} Bg7 {[%emt 0:00:07]} 5. Be3 {[%emt 0:00:13]} d6 {[%emt 0:01:24]} 6. Qd2 {[%emt 0:00:13]} h6 {[%emt 0:03:22] B24: Closed Sicilian: 3 g3 sidelines} (6... e5 7. Bg2 Nge7 8. h4 h5 9. f4 Nd4 10. Nd1 d5 11. c3 Ne6 12. Nf3 d4 13. Bg1 Nc6 14. c4 f6 15. Nf2 Bh6 16. Nh3 {½-½ (57) Granda Zuniga,J (2667)-Wojtaszek,R (2734) Baku 2015}) 7. Bg2 {[%emt 0:00:31]} Nf6 {[%emt 0:02:06]} 8. h3 {[%emt 0:00:29]} Rb8 {[%emt 0:01:50]} 9. f4 {[%emt 0:00:25]} e5 $146 {[%emt 0:06:04]} ({Predecessor:} 9... Nd4 10. Nce2 Nxe2 11. Nxe2 b6 12. O-O Bb7 13. g4 Qd7 14. Ng3 O-O 15. c3 d5 16. e5 {1-0 (43) Krapivin,A (2445)-Tsydypov,Z (2321) Moscow 2012}) 10. Nf3 {[%emt 0:02:18]} Nh5 {[%emt 0:08:38]} 11. Qf2 {[%emt 0:02:07]} Nd4 {[%emt 0:16:50] unterminated} 12. O-O {[%emt 0:08:41] unterminated} ({White should play} 12. fxe5 $14 dxe5 13. Nd5) 12... Be6 {[%emt 0:17:20] unterminated} 13. fxe5 {[%emt 0:48:22]} dxe5 {[%emt 0:01:33] unterminated} 14. g4 {[%emt 0:03:35] unterminated} Nf4 {[%emt 0:12:46] unterminated} 15. Nxd4 {[%emt 0:09:08] unterminated} Nxh3+ {[%emt 0:01:42]} 16. Bxh3 {[%emt 0:00:27]} cxd4 {[%emt 0:00:11] unterminated} 17. Bd2 {[%emt 0:01:54] unterminated} dxc3 {[%emt 0:00:10] unterminated} 18. bxc3 {[%emt 0:00:51] unterminated} b6 {[%emt 0:02:03] unterminated} 19. g5 {[%emt 0:11:39] unterminated} Qe7 {[%emt 0:04:44]} 20. Bxe6 {[%emt 0:01:10] unterminated} Qxe6 {[%emt 0:01:46]} 21. Qg2 {[%emt 0:00:52] unterminated} hxg5 {[%emt 0:03:07]} 22. Bxg5 {[%emt 0:00:10] unterminated} Kd7 {[%emt 0:10:11]} 23. Rf3 {[%emt 0:00:21] unterminated} f6 {[%emt 0:02:00] unterminated} 24. Be3 {[%emt 0:00:09] unterminated} Bh6 {[%emt 0:03:02]} 25. Bxh6 {[%emt 0:01:30]} Rxh6 {[%emt 0:00:05]} 26. Raf1 {[%emt 0:01:10]} g5 {[%emt 0:00:35] unterminated} 27. d4 $17 {[%emt 0:02:35]} Ke7 {[%emt 0:08:36]} 28. d5 {[%emt 0:00:48]} Qd6 {[%emt 0:00:40]} 29. Qg4 {[%emt 0:00:51]} Rbh8 {[%emt 0:01:04]} 30. R1f2 {[%emt 0:01:19]} Rh4 {[%emt 0:01:49]} 31. Qf5 {[%emt 0:01:09]} Rh1+ {[%emt 0:02:27]} 32. Kg2 {[%emt 0:00:05]} R1h2+ {[%emt 0:00:31]} 33. Kg3 {[%emt 0:00:48]} Rxf2 {[%emt 0:00:18]} 34. Rxf2 {[%emt 0:00:16]} Rh6 {[%emt 0:01:23]} 35. Qc8 {[%emt 0:00:17]} Qd7 {[%emt 0:01:39]} 36. Qxd7+ {[%emt 0:00:46]} Kxd7 {[%emt 0:00:00]} 37. Rh2 {[%emt 0:00:51] normal} Rxh2 {[%emt 0:01:49]} 38. Kxh2 {[%emt 0:00:02] normal} b5 {[%emt 0:01:46]} 39. Kg3 {[%emt 0:00:09] normal} Kd6 {[%emt 0:00:56] normal} 1/2-1/2

[Event "DVM U20 2019"]
[Site "Braunschweig"]
[Date "2019.12.28"]
[Round "3"]
[White "Roos, Elias"]
[Black "Kaiser, Frederic"]
[Result "1-0"]
[ECO "B11"]
[WhiteElo "1812"]
[BlackElo "1901"]
[Annotator "NA RC"]
[PlyCount "65"]
[EventDate "2019.12.27"]
[EventType "team-tourn"]
[EventRounds "7"]
[EventCountry "GER"]
[SourceTitle "playchess.com"]
[Source "ChessBase"]
[SourceQuality "1"]
[WhiteTeam "SG Trier"]
[BlackTeam "Sges Bensheim"]
[TimeControl "40/5400+30:1800+30"]

1. e4 {[%emt 0:00:00]} c6 {[%emt 0:00:09] unterminated} 2. Nc3 {[%emt 0:00:00]} d5 {[%emt 0:00:07]} 3. Nf3 {[%emt 0:00:13] unterminated} Bg4 {[%emt 0:03:30] unterminated} 4. d4 {[%emt 0:02:12] unterminated} dxe4 {[%emt 0:01:48]} (4... e6 5. Bd3 Nf6 6. e5 Nfd7 7. h3 Bxf3 8. Qxf3 c5 9. dxc5 Nc6 10. Qg3 Ncxe5 11. Bb5 a6 12. Ba4 Nc6 13. Be3 {½-½ (53) Bacrot,E (2708)-Topalov,V (2749) Paris 2017}) 5. Nxe4 {[%emt 0:00:00] unterminated} Bxf3 {[%emt 0:07:14]} 6. Qxf3 {unterminated B11: Caro-Kann: Two Knights Variation} Qxd4 {[%emt 0:02:03] unterminated} 7. c3 {[%emt 0:02:16] unterminated} Qd5 {[%emt 0:02:35] unterminated} 8. Bf4 {[%emt 0:10:39] unterminated} f5 $146 {[%emt 0:14:43]} (8... Nf6 $11 9. Bd3 Nbd7) ({Predecessor:} 8... Nd7 9. Nd2 Ngf6 10. Qxd5 Nxd5 11. Bg3 e6 12. Be2 {0-1 (67) Bogatto,M (1421)-Cantamessa,M (1527) Piverone 2012}) 9. Nd2 {[%emt 0:01:05]} Qxf3 {[%emt 0:00:41]} 10. Nxf3 {[%emt 0:00:31]} Nd7 {[%emt 0:02:40]} 11. Bc4 {[%emt 0:08:37]} h6 {[%emt 0:09:29]} 12. h4 {[%emt 0:09:07]} Ngf6 {[%emt 0:01:28]} 13. O-O-O {[%emt 0:21:25]} g6 {[%emt 0:08:49]} 14. Rhe1 {[%emt 0:09:41]} Ne4 {[%emt 0:04:20]} 15. Ne5 {[%emt 0:02:55]} Nxe5 {[%emt 0:07:33]} 16. Bxe5 {[%emt 0:00:06]} Rh7 {[%emt 0:00:03]} 17. Bg8 {[%emt 0:00:42]} Rf7 {[%emt 0:03:15]} 18. Bxf7+ {[%emt 0:00:25]} Kxf7 {[%emt 0:00:02]} 19. f3 {[%emt 0:01:44]} Nc5 {[%emt 0:00:42]} 20. b4 {[%emt 0:01:33]} Ne6 {[%emt 0:00:58]} 21. Rd7 {[%emt 0:01:24]} b6 {[%emt 0:00:18]} 22. Red1 {[%emt 0:02:11]} a5 {[%emt 0:00:49]} 23. Kb2 {[%emt 0:01:17]} axb4 {[%emt 0:02:10]} 24. cxb4 {[%emt 0:00:04]} b5 {[%emt 0:07:14]} 25. Rb7 {[%emt 0:05:55]} Rc8 {[%emt 0:02:30]} 26. Rdd7 {[%emt 0:03:35]} Ke8 {[%emt 0:00:32]} 27. Rd2 {[%emt 0:03:28]} Ra8 {[%emt 0:01:07] unterminated} 28. Rc2 $18 {[%emt 0:04:57]} Rc8 {[%emt 0:05:24]} 29. Rxb5 {[%emt 0:01:34]} Nd8 {[%emt 0:02:56]} 30. Rbc5 {[%emt 0:01:47]} e6 {[%emt 0:02:21]} 31. R5c4 {[%emt 0:00:23]} Nf7 {[%emt 0:00:22]} 32. Bf6 {[%emt 0:00:54]} Kd7 {[%emt 0:00:25]} 33. Kb3 {[%emt 0:01:34] normal} 1-0

[Event "DVM U20 2019"]
[Site "Braunschweig"]
[Date "2019.12.28"]
[Round "3"]
[White "Mundt, Alexandra"]
[Black "Vuckovic, Robert"]
[Result "1-0"]
[ECO "B32"]
[WhiteElo "1775"]
[BlackElo "1897"]
[Annotator "NA"]
[PlyCount "121"]
[EventDate "2019.12.27"]
[EventType "team-tourn"]
[EventRounds "7"]
[EventCountry "GER"]
[SourceTitle "playchess.com"]
[Source "ChessBase"]
[SourceQuality "1"]
[WhiteTeam "Lübecker SV"]
[BlackTeam "SF Augsburg"]
[TimeControl "40/5400+30:1800+30"]

1. e4 {[%emt 0:00:00]} c5 {[%emt 0:00:00]} 2. Nf3 {[%emt 0:00:00]} Nc6 {[%emt 0:00:00]} 3. d4 {[%emt 0:00:00]} cxd4 {[%emt 0:00:00]} 4. Nxd4 {[%emt 0:00:00]} Qb6 {[%emt 0:00:04]} 5. Nb3 {[%emt 0:01:43] unterminated} Nf6 {[%emt 0:00:36]} 6. Nc3 {[%emt 0:00:25]} e6 {[%emt 0:00:10] unterminated} 7. Be3 {[%emt 0:04:08]} Qc7 {[%emt 0:00:07]} 8. a3 {[%emt 0:00:12] unterminated} Be7 {[%emt 0:02:14] unterminated} 9. Be2 {[%emt 0:04:08] unterminated} O-O {[%emt 0:01:55] unterminated} 10. O-O {[%emt 0:02:04] unterminated} a6 {[%emt 0:07:22] unterminated} 11. Kh1 {[%emt 0:12:17] unterminated} b5 {[%emt 0:01:36] unterminated} 12. f4 {[%emt 0:05:19] unterminated} d6 {[%emt 0:00:52] unterminated} 13. Bf3 {[%emt 0:05:57] unterminated} Bb7 {[%emt 0:01:51] unterminated} 14. Qe1 {[%emt 0:07:42] unterminated unterminated. B33: Sicilian: Pelikan and Sveshnikov Variations} Rfd8 {[%emt 0:02:55] unterminated} (14... Rac8 15. Rd1 b4 16. axb4 Nxb4 17. Qf2 e5 18. Rd2 Ba8 19. Bb6 Qc6 20. Na5 Qe8 21. fxe5 dxe5 {½-½ (60) Wahlbom,M (2173)-Maryasin,B (2284) Bled 2018}) 15. Qg3 $146 {[%emt 0:04:26] unterminated} ({Predecessor:} 15. Rd1 Rac8 16. g4 Na5 17. Nxa5 Qxa5 18. Nd5 Qxe1 19. Nxe7+ {1-0 (52) Hernandez Rios,I (1990)-Rosso Lizza,P Isla Bonita 2004}) 15... Rd7 {[%emt 0:04:09] unterminated} 16. Rad1 {[%emt 0:19:08]} Rad8 {[%emt 0:04:27] unterminated} 17. Rfe1 {[%emt 0:06:48] unterminated} Na5 {[%emt 0:06:05] unterminated} 18. Nxa5 {[%emt 0:01:20]} Qxa5 {[%emt 0:00:08]} 19. Qf2 {[%emt 0:00:09] unterminated} Qc7 {[%emt 0:01:41]} 20. Bb6 {[%emt 0:00:14] Skewer} Qc8 {[%emt 0:00:15]} 21. Bxd8 {[%emt 0:00:20]} Bxd8 {[%emt 0:01:36]} 22. e5 {[%emt 0:04:11]} Ne8 {[%emt 0:09:18]} 23. Bxb7 {[%emt 0:01:46]} Qxb7 {[%emt 0:00:08]} 24. Qf3 {[%emt 0:00:07]} Qxf3 {[%emt 0:01:14]} 25. gxf3 {[%emt 0:00:01]} d5 {[%emt 0:00:21]} 26. Ne2 {[%emt 0:00:54]} g6 {[%emt 0:01:41]} 27. Rd3 {[%emt 0:04:08]} Kf8 {[%emt 0:06:45]} 28. Red1 {[%emt 0:02:54]} Ba5 {[%emt 0:03:31]} 29. b4 {[%emt 0:01:58]} Bb6 {[%emt 0:00:27]} 30. Rc3 {[%emt 0:00:45]} Ke7 {[%emt 0:02:05]} 31. Rc6 {[%emt 0:01:28]} Rb7 {[%emt 0:00:06]} 32. Rc3 {[%emt 0:02:35]} Kd7 {[%emt 0:00:26]} 33. Kg2 {[%emt 0:01:05]} Ng7 {[%emt 0:00:09]} 34. Ng3 {[%emt 0:01:34]} Bd8 {[%emt 0:03:01]} 35. Ne4 {[%emt 0:02:55]} Be7 {[%emt 0:03:10]} 36. Rdd3 {[%emt 0:02:29]} Nf5 {[%emt 0:00:50]} 37. Ng3 {[%emt 0:02:04]} Ng7 {[%emt 0:01:04]} 38. Ne4 {[%emt 0:00:02]} Nf5 {[%emt 0:00:09]} 39. Nc5+ {[%emt 0:00:35]} Bxc5 {[%emt 0:00:11]} 40. Rxc5 {[%emt 0:00:06]} Ra7 {[%emt 0:02:29]} 41. Kh3 {[%emt 0:03:58]} Rc7 {[%emt 0:07:40]} 42. Rxc7+ {[%emt 0:00:49]} Kxc7 {[%emt 0:00:01]} 43. Kg4 {[%emt 0:00:20]} h6 {[%emt 0:00:44] unterminated} 44. h4 {[%emt 0:02:29] unterminated} Ng7 {[%emt 0:04:46] unterminated} 45. a4 {[%emt 0:09:03] unterminated} Kb6 {[%emt 0:03:11] unterminated} 46. axb5 {[%emt 0:04:02]} Kxb5 {[%emt 0:00:15]} 47. Ra3 {[%emt 0:00:12] unterminated} Nf5 {[%emt 0:00:24]} ({Black should play} 47... d4 $1 $14) 48. c3 {[%emt 0:01:44]} Ne3+ {[%emt 0:00:44]} 49. Kg3 {[%emt 0:00:45]} Nc4 {[%emt 0:00:23]} 50. Ra1 {[%emt 0:00:30] unterminated} h5 $2 {[%emt 0:00:15] unterminated} (50... Ne3 51. h5 Nf5+ 52. Kg4 Ng7 53. hxg6 fxg6 54. Ra5+ Kb6) 51. Kf2 {[%emt 0:03:45]} Kb6 {[%emt 0:00:42] unterminated} 52. Ke2 {[%emt 0:02:01] unterminated} Kb5 {[%emt 0:01:40]} 53. Kd3 {[%emt 0:00:30]} Kb6 {[%emt 0:00:07]} 54. Kd4 {[%emt 0:00:20]} Nd2 {[%emt 0:00:16]} 55. Ke3 {[%emt 0:00:37]} Nc4+ {[%emt 0:00:17]} 56. Kd3 {[%emt 0:00:10]} Nb2+ {[%emt 0:01:18]} 57. Ke2 {[%emt 0:00:20]} Nc4 {[%emt 0:00:12]} 58. Ra2 {[%emt 0:00:07]} Kb5 {[%emt 0:00:53]} 59. Kd3 {[%emt 0:01:15]} Kb6 {[%emt 0:01:06]} 60. Kd4 {[%emt 0:00:18]} Kb5 {[%emt 0:00:25] [#] unterminated} 61. f5 $18 {[%emt 0:02:29] normal} 1-0

[Event "DVM U20 2019"]
[Site "Braunschweig"]
[Date "2019.12.28"]
[Round "3"]
[White "Hoenselaar, Dennis"]
[Black "Schubert, Bernhard"]
[Result "1/2-1/2"]
[ECO "A30"]
[WhiteElo "1769"]
[BlackElo "1586"]
[Annotator "NA RC"]
[PlyCount "71"]
[EventDate "2019.12.27"]
[EventType "team-tourn"]
[EventRounds "7"]
[EventCountry "GER"]
[SourceTitle "playchess.com"]
[Source "ChessBase"]
[SourceQuality "1"]
[WhiteTeam "SK Turm Kleve"]
[BlackTeam "USV TU Dresden"]
[TimeControl "40/5400+30:1800+30"]

1. c4 {[%emt 0:00:00]} c5 {[%emt 0:00:00]} 2. g3 {[%emt 0:00:00]} Nf6 {[%emt 0:00:38]} 3. Bg2 {[%emt 0:00:00]} e6 {[%emt 0:01:17]} 4. e4 {[%emt 0:04:06]} Nc6 {[%emt 0:01:37]} 5. Nc3 {[%emt 0:00:55]} Be7 {[%emt 0:02:40]} 6. Nge2 {[%emt 0:01:03]} O-O {[%emt 0:00:28]} 7. O-O {[%emt 0:00:19]} d6 {[%emt 0:01:19]} 8. d3 {[%emt 0:02:02]} Qd7 {[%emt 0:01:46]} 9. h3 {[%emt 0:07:58]} b6 {[%emt 0:01:55]} 10. Be3 {[%emt 0:02:24]} Bb7 {[%emt 0:00:39]} 11. d4 {[%emt 0:03:17]} cxd4 {[%emt 0:00:54]} 12. Nxd4 {[%emt 0:00:11]} Nxd4 {[%emt 0:03:06]} 13. Bxd4 {[%emt 0:00:02]} Rac8 {[%emt 0:03:37]} 14. b3 {[%emt 0:02:52]} Ne8 {[%emt 0:02:21]} 15. Re1 {[%emt 0:10:31]} Bf6 {[%emt 0:23:22]} 16. Bxf6 {[%emt 0:01:11]} Nxf6 {[%emt 0:01:19]} 17. Qd2 {[%emt 0:11:46]} Rfd8 {[%emt 0:05:24]} 18. Rad1 {[%emt 0:02:46]} a6 {[%emt 0:03:56]} 19. a4 {[%emt 0:11:53]} Bc6 {[%emt 0:01:18]} 20. Qe2 {[%emt 0:08:05]} Qb7 {[%emt 0:03:36]} 21. Rd2 {[%emt 0:08:13]} Ne8 {[%emt 0:14:30]} 22. Red1 {[%emt 0:03:13]} Rd7 {[%emt 0:04:06]} 23. f4 {[%emt 0:01:12]} Qa7 {[%emt 0:03:51]} 24. Kh2 {[%emt 0:00:52]} Rcd8 {[%emt 0:01:15]} 25. e5 {[%emt 0:00:46]} Bxg2 26. Qxg2 {[%emt 0:00:26]} Qc7 {[%emt 0:07:31]} 27. exd6 {[%emt 0:02:32]} Nxd6 {[%emt 0:01:19]} 28. Ne4 {[%emt 0:04:34]} Nxe4 {[%emt 0:02:44]} 29. Rxd7 {[%emt 0:00:15]} Rxd7 {[%emt 0:00:25]} 30. Rxd7 {[%emt 0:00:09]} Qxd7 {[%emt 0:00:09]} 31. Qxe4 {[%emt 0:00:10]} Qd2+ {[%emt 0:00:58]} 32. Qg2 {[%emt 0:01:56]} Qxg2+ {[%emt 0:02:25]} 33. Kxg2 {[%emt 0:00:01]} Kf8 {[%emt 0:00:11]} 34. Kf3 {[%emt 0:01:20]} Ke7 {[%emt 0:00:08]} 35. Ke3 {[%emt 0:00:57]} Kd6 {[%emt 0:00:24]} 36. Ke4 {normal} 1/2-1/2

[Event "DVM U20 2019"]
[Site "Braunschweig"]
[Date "2019.12.28"]
[Round "3"]
[White "Roesler, Hannah Clara"]
[Black "Wegmer, Leon"]
[Result "0-1"]
[ECO "C52"]
[WhiteElo "1695"]
[BlackElo "1939"]
[Annotator "NA RC"]
[PlyCount "130"]
[EventDate "2019.12.27"]
[EventType "team-tourn"]
[EventRounds "7"]
[EventCountry "GER"]
[SourceTitle "playchess.com"]
[Source "ChessBase"]
[SourceQuality "1"]
[WhiteTeam "SK Bebenhausen"]
[BlackTeam "Karlsruher SF"]
[TimeControl "40/5400+30:1800+30"]

1. e4 {[%emt 0:00:00]} e5 {[%emt 0:00:00]} 2. Nf3 {[%emt 0:00:00]} Nc6 {[%emt 0:00:00]} 3. Bc4 {[%emt 0:00:23]} Bc5 {[%emt 0:00:00]} 4. b4 {[%emt 0:00:40]} Bxb4 {[%emt 0:00:00]} 5. c3 {[%emt 0:00:03]} Ba5 {[%emt 0:00:01]} 6. d4 {[%emt 0:00:03]} d6 {[%emt 0:00:05]} 7. Qb3 {[%emt 0:00:41] unterminated} Qd7 {[%emt 0:00:04] unterminated} 8. dxe5 {[%emt 0:08:49] unterminated} Bb6 {[%emt 0:07:08] unterminated} 9. exd6 {[%emt 0:10:43] unterminated unterminated. C52: Evans Gambit Accepted: 5 c3 Ba5} (9. a4 Na5 10. Qa2 Nxc4 11. Qxc4 Ne7 12. Ba3 O-O 13. O-O Re8 14. exd6 cxd6 15. Rd1 Qc6 16. Nbd2 Be6 17. Qxc6 Nxc6 18. Bxd6 {0-1 (30) Nisipeanu,L (2654)-Caruana,F (2805) Dortmund 2015}) 9... Na5 {[%emt 0:04:29] unterminated} 10. Qb5 {[%emt 0:04:27] unterminated} Nxc4 {[%emt 0:02:11]} 11. Qxc4 {[%emt 0:00:13]} Qxd6 {[%emt 0:00:48] unterminated} 12. Ba3 {[%emt 0:05:58] unterminated} Be6 {[%emt 0:03:12] unterminated} 13. Qb5+ {[%emt 0:10:50]} Qd7 {[%emt 0:00:04] unterminated} 14. c4 $146 {[%emt 0:03:47]} ({Predecessor:} 14. Qxd7+ Bxd7 15. Ne5 Be6 16. Nd2 O-O-O {0-1 (53) Damia,A (2233)-Anurag,M (2423) Sevilla 2017}) 14... c6 {[%emt 0:01:33] unterminated} 15. Qb2 {[%emt 0:02:04]} O-O-O {[%emt 0:00:35]} 16. Nbd2 {[%emt 0:01:15] unterminated} Nf6 {[%emt 0:12:20] unterminated} 17. O-O {[%emt 0:06:03]} Bd4 {[%emt 0:00:41] unterminated} 18. Nxd4 {[%emt 0:02:06]} Qxd4 {[%emt 0:00:08]} 19. Rab1 {[%emt 0:01:33] unterminated} Qxb2 {[%emt 0:01:59]} 20. Rxb2 {[%emt 0:00:04] unterminated} Rd3 {[%emt 0:02:33] unterminated} 21. e5 $17 {[%emt 0:03:29]} ({White should play} 21. Be7) 21... Rxa3 {[%emt 0:03:10]} 22. exf6 {[%emt 0:00:25]} gxf6 {[%emt 0:00:01]} 23. Ne4 {[%emt 0:04:11]} Rd8 {[%emt 0:02:11]} 24. c5 {[%emt 0:02:07]} Rxa2 {[%emt 0:00:17]} 25. Nd6+ {[%emt 0:03:26]} Rxd6 {[%emt 0:00:14]} 26. Rxa2 {[%emt 0:00:08]} Bxa2 {[%emt 0:00:01]} 27. cxd6 {[%emt 0:00:22]} Bd5 {[%emt 0:00:23]} 28. Re1 {[%emt 0:01:19]} Be6 {[%emt 0:00:40]} 29. Rb1 {[%emt 0:04:32]} a5 {[%emt 0:00:47]} 30. Ra1 {[%emt 0:02:03]} b6 {[%emt 0:00:07]} 31. Kf1 {[%emt 0:00:40]} Kd7 {[%emt 0:00:15]} 32. Ke2 {[%emt 0:01:25]} Kxd6 {[%emt 0:00:20]} 33. Kd3 {[%emt 0:01:39]} Bb3 {[%emt 0:00:46]} 34. Re1 {[%emt 0:01:02]} a4 {[%emt 0:01:11]} 35. Kc3 {[%emt 0:02:47]} c5 {[%emt 0:00:45]} 36. Re8 {[%emt 0:01:07]} b5 {[%emt 0:00:13]} 37. Ra8 {[%emt 0:06:09]} b4+ {[%emt 0:00:10]} 38. Kb2 {[%emt 0:02:50]} c4 {[%emt 0:00:13]} 39. Ra5 {[%emt 0:02:57]} a3+ {[%emt 0:01:16]} 40. Kc1 {[%emt 0:00:13]} c3 {[%emt 0:00:39]} 41. f3 {[%emt 0:09:18]} Bc4 {[%emt 0:01:03]} 42. Kc2 {[%emt 0:02:28]} b3+ {[%emt 0:00:39]} 43. Kxc3 {[%emt 0:00:43]} b2 {[%emt 0:00:02]} 44. Rxa3 {[%emt 0:01:07]} b1=Q {[%emt 0:00:32]} 45. Kxc4 {[%emt 0:00:11]} Qc2+ {[%emt 0:00:18]} 46. Kb4 {[%emt 0:01:52]} Kd5 {[%emt 0:00:50]} 47. Ra5+ {[%emt 0:01:25]} Kd4 {[%emt 0:00:13]} 48. Rh5 {[%emt 0:00:48]} Qb2+ {[%emt 0:00:38]} 49. Ka5 {[%emt 0:00:29]} Qxg2 {[%emt 0:01:20]} 50. Rxh7 {[%emt 0:01:43]} Qa2+ {[%emt 0:00:04]} 51. Kb6 {[%emt 0:00:32]} Qb1+ {[%emt 0:00:03]} 52. Kc6 {[%emt 0:00:37]} Qxh7 {[%emt 0:00:06]} 53. h4 {[%emt 0:00:04]} Qc2+ {[%emt 0:00:10]} 54. Kd6 {[%emt 0:00:08]} Qc5+ {[%emt 0:00:44]} 55. Kd7 {[%emt 0:00:07]} Kd5 {[%emt 0:00:07]} 56. Ke8 {[%emt 0:00:10]} Ke6 {[%emt 0:00:12]} 57. Kd8 {[%emt 0:00:19]} Kd6 {[%emt 0:00:04]} 58. Ke8 {[%emt 0:00:15]} Qh5 {[%emt 0:00:47]} 59. f4 {[%emt 0:00:43]} Qh8+ {[%emt 0:00:05]} 60. Kxf7 {[%emt 0:00:14]} Qh6 {[%emt 0:01:12]} 61. f5 {[%emt 0:00:20]} Ke5 {[%emt 0:00:25]} 62. h5 {[%emt 0:00:14]} Qh7+ {[%emt 0:00:01]} 63. Kf8 {[%emt 0:00:43]} Kxf5 {[%emt 0:00:36]} 64. h6 {[%emt 0:00:10]} Ke6 {[%emt 0:00:11]} 65. Ke8 {[%emt 0:00:04]} Qg8# {normal} 0-1